fUSD/lending_fUSD_20260622
["ID","MTS","AMOUNT","RATE_DAILY","PERIOD"]
[425967883,1782057705000,-37.33413436,0.00011227,2]
[425967884,1782057758000,-166.66,0.00010959,2]
[425967886,1782057812000,-166.66,0.00011171,2]
[425967887,1782057866000,-1520.64245995,0.00011227,2]
[425967888,1782057884000,-822.51754005,0.00011227,2]
[425967889,1782057934000,-819.4,0.00011227,2]
[425967890,1782057946000,1001.0,0.00029041,120]
[425967891,1782057988000,-175.71932387,0.00011284,2]
[425967892,1782058042000,-200.0,0.00011224,2]
[425967893,1782058095000,-1653.86808024,0.00011249,2]
[425967894,1782058111000,-412.50191976,0.00011249,2]
[425967897,1782058144000,-2401.52,0.00011306,2]
[425967896,1782058144000,-150.0,0.00011295,2]
[425967898,1782058144000,-29.21967192,0.00011331,2]
[425967899,1782058144000,-779.99754137,0.00011331,2]
[425967895,1782058144000,-171.25,0.00011292,2]
[425967901,1782058150000,-166.66,0.00011383,2]
[425967900,1782058150000,-88.58278671,0.00011331,2]
[425967915,1782058231000,-999.99,0.0001202,2]
[425967929,1782058231000,-8817.12683021,0.00012205,2]
[425967919,1782058231000,-777.79,0.0001202,2]
[425967917,1782058231000,-9999.99,0.0001202,2]
[425967916,1782058231000,-4374.29,0.0001202,2]
[425967914,1782058231000,-166.66,0.0001202,2]
[425967913,1782058231000,-151.0,0.00012,2]
[425967905,1782058231000,-344.66,0.00011691,2]
[425967912,1782058231000,-151.0,0.00012,2]
[425967910,1782058231000,-166.66,0.00011808,2]
[425967909,1782058231000,-500.0,0.000118,4]
[425967908,1782058231000,-310.64,0.00011788,2]
[425967906,1782058231000,-200.0,0.000117,4]
[425967907,1782058231000,-2053.285609,0.00011728,2]
[425967918,1782058231000,-9999.99,0.0001202,2]
[425967904,1782058231000,-166.66,0.00011596,2]
[425967911,1782058231000,-800.0,0.000119,4]
[425967921,1782058231000,-299.99,0.0001202,2]
[425967931,1782058231000,-13642.8996889,0.00012205,2]
[425967924,1782058231000,-1963.0386,0.00012178,2]
[425967954,1782058231000,-803.60371442,0.00012305,2]
[425967953,1782058231000,-1695.13115595,0.00012305,2]
[425967952,1782058231000,-30808.64409114,0.00012305,2]
[425967948,1782058231000,-56436.13309241,0.00012305,2]
[425967950,1782058231000,-7741.24901152,0.00012305,2]
[425967946,1782058231000,-216.32317309,0.00012295,2]
[425967939,1782058231000,-1349.5561914,0.00012257,2]
[425967925,1782058231000,-6766.2232,0.00012178,2]
[425967942,1782058231000,-1000.0,0.00012277,2]
[425967941,1782058231000,-150.0,0.00012276,2]
[425967937,1782058231000,-171.25,0.00012232,2]
[425967935,1782058231000,-437.15368495,0.00012229,2]
[425967933,1782058231000,-917.433,0.00012217,2]
[425967923,1782058231000,-2016.573,0.00012178,2]
[425967927,1782058231000,-1718.6965,0.00012205,2]
[425967922,1782058231000,-150.99,0.0001202,2]
[425967920,1782058231000,-9999.99,0.0001202,2]
[425967944,1782058231000,-2000.0,0.00012278,2]
[425967958,1782058237000,-3364.18301643,0.00012305,2]
[425967957,1782058237000,-3979.61163682,0.00012305,2]
[425967995,1782058239000,-648.71211241,0.00012305,2]
[425967997,1782058239000,-251847.08243053,0.00012305,2]
[425967996,1782058239000,-469.45547152,0.00012305,2]
[425968025,1782058245000,-3174.5105,0.00012127,2]
[425968027,1782058245000,-1479.73651814,0.00012305,2]
[425968026,1782058245000,-133681.70092771,0.00012305,2]
[425968029,1782058290000,500.0,0.00011305,2]
[425968030,1782058290000,486.19115176,0.00011305,2]
[425968031,1782058423000,923.0655367,0.00030136,120]
[425968032,1782058470000,-900.97775981,0.00010739,2]
[425968033,1782058489000,-166.66,0.00010648,2]
[425968034,1782058493000,1326.59,0.00010351,2]
[425968035,1782058538000,-500.0,0.00010738,2]
[425968036,1782058540000,469.87,0.00010341,2]
[425968037,1782058592000,-342.09059084,0.00010595,2]
[425968038,1782058593000,2487.61,0.00010226,2]
[425968039,1782058645000,-150.0,0.00010622,2]
[425968040,1782058650000,639.99661193,0.00010225,2]
[425968041,1782058651000,150.0,0.00030136,120]
[425968044,1782058658000,350.0,0.00010225,2]
[425968043,1782058658000,500.0,0.00010225,2]
[425968042,1782058658000,500.0,0.00010225,2]
[425968045,1782058681000,2424.53,0.00010243,2]
[425968047,1782058699000,456.08186961,0.00010225,2]
[425968046,1782058699000,-250.0,0.0001065,2]
[425968048,1782058728000,1001.0,0.00029041,120]
[425968049,1782058732000,500.0,0.00010225,2]
[425968050,1782058733000,500.0,0.00010225,2]
[425968051,1782058752000,-150.0,0.00010705,2]
[425968052,1782058752000,2229.8,0.00010308,2]
[425968054,1782058755000,-68.37103571,0.00010507,2]
[425968053,1782058755000,-181.62896429,0.00010507,2]
[425968056,1782058760000,105.13628866,0.00010331,2]
[425968055,1782058760000,170.09371134,0.00010331,2]
[425968057,1782058805000,-427.60270516,0.00010739,2]
[425968059,1782058807000,1587.97149715,0.00010342,2]
[425968058,1782058807000,68.10850285,0.00010342,2]
[425968060,1782058859000,-1526.89,0.00010739,2]
[425968061,1782058876000,-465.07224019,0.00010739,2]
[425968063,1782058878000,51.23316484,0.00010273,2]
[425968062,1782058878000,107.81683516,0.00010273,2]
[425968065,1782058944000,84.57316484,0.00010142,2]
[425968064,1782058944000,115.42683516,0.00010142,2]
[425968066,1782059038000,-499.99999999,0.00010738,2]
[425968067,1782059043000,225.98677375,0.00010112,2]
[425968068,1782059043000,153.75,0.00010112,2]
[425968069,1782059043000,153.75,0.00010112,2]
[425968073,1782059043000,157.24240289,0.00010112,2]
[425968070,1782059043000,153.75,0.00010112,2]
[425968072,1782059043000,319.9775357,0.00010112,2]
[425968071,1782059043000,220.21822316,0.00010112,2]
[425968078,1782059044000,186.193351,0.00010112,2]
[425968074,1782059044000,153.75,0.00010112,2]
[425968075,1782059044000,153.75,0.00010112,2]
[425968077,1782059044000,162.791075,0.00010112,2]
[425968076,1782059044000,206.11706339,0.00010112,2]
[425968079,1782059044000,187.8267584,0.00010112,2]
[425968080,1782059044000,186.193351,0.00010112,2]
[425968081,1782059044000,1967.2427477,0.00010112,2]
[425968083,1782059044000,400.05721049,0.00010112,2]
[425968082,1782059044000,500.0,0.00010112,2]
[425968084,1782059044000,236.52,0.00010112,2]
[425968087,1782059044000,33655.57575595,0.00010112,2]
[425968086,1782059044000,344.62775157,0.00010112,2]
[425968085,1782059044000,263.48,0.00010112,2]
[425968088,1782059092000,-150.0,0.00010739,2]
[425968089,1782059146000,-150.0,0.00010739,2]
[425968090,1782059155000,2000.0,0.00010267,2]
[425968092,1782059199000,-785.49601378,0.0001074,2]
[425968093,1782059216000,-785.49601378,0.0001074,2]
[425968094,1782059217000,-302.98077786,0.0001074,2]
[425968095,1782059232000,-785.49601378,0.0001074,2]
[425968096,1782059249000,-233.4711808,0.0001074,2]
[425968097,1782059300000,-166.61,0.00010461,2]
[425968098,1782059311000,150.0,0.00029529,120]
[425968099,1782059353000,-500.0,0.0001074,2]
[425968104,1782059354000,-77.66797914,0.00010743,2]
[425968103,1782059354000,-297.92434177,0.00010743,2]
[425968102,1782059354000,-160.0,0.00010741,2]
[425968101,1782059354000,-2892.94,0.00010741,2]
[425968100,1782059354000,-216.32317309,0.00010741,2]
[425968105,1782059364000,663.29,0.00010379,2]
[425968107,1782059371000,-2019.54300871,0.00010744,2]
[425968106,1782059371000,-773.36258444,0.00010743,2]
[425968109,1782059371000,-1919.50860186,0.00010747,2]
[425968110,1782059371000,-973.43139814,0.00010747,2]
[425968111,1782059371000,-307.0163081,0.00010752,2]
[425968108,1782059371000,-873.39699129,0.00010744,2]
[425968116,1782059407000,-150.99,0.00010752,2]
[425968115,1782059407000,-304.29494846,0.00010752,2]
[425968114,1782059407000,-2281.62874344,0.00010752,2]
[425968113,1782059407000,-648.60202756,0.00010644,2]
[425968112,1782059407000,-922.39,0.00010644,2]
[425968119,1782059408000,-276.98477177,0.00010764,2]
[425968118,1782059408000,-417.99417746,0.00010757,2]
[425968117,1782059408000,-2474.94582254,0.00010757,2]
[425968134,1782059431000,-299.99,0.00010799,2]
[425968131,1782059431000,-2448.48107953,0.00010779,2]
[425968132,1782059431000,-2892.94,0.00010789,2]
[425968130,1782059431000,-419.22850987,0.00010779,2]
[425968128,1782059431000,-1559.5401894,0.00010771,2]
[425968124,1782059431000,-150.0,0.00010763,2]
[425968126,1782059431000,-761.05665073,0.00010771,2]
[425968125,1782059431000,-2615.95522823,0.00010764,2]
[425968123,1782059431000,-212.0,0.00010756,2]
[425968133,1782059431000,-2892.94,0.00010799,2]
[425968127,1782059431000,-572.34315987,0.00010771,2]
[425968135,1782059431000,-2892.94,0.0001081,2]
[425968129,1782059431000,-25.2304106,0.00010779,2]
[425968140,1782059431000,-5447.58,0.00010822,2]
[425968150,1782059431000,-2892.94,0.00010917,2]
[425968145,1782059431000,-2892.94,0.00010865,2]
[425968146,1782059431000,-2892.94,0.00010881,2]
[425968143,1782059431000,-6592.69,0.00010836,2]
[425968144,1782059431000,-2892.94,0.0001085,2]
[425968148,1782059431000,-2892.94,0.00010898,2]
[425968136,1782059431000,-9999.99,0.0001081,2]
[425968141,1782059431000,-2892.94,0.00010836,2]
[425968139,1782059431000,-999.99,0.00010822,2]
[425968137,1782059431000,-150.99,0.0001081,2]
[425968138,1782059431000,-2892.94,0.00010822,2]
[425968142,1782059431000,-15105.26,0.00010836,2]
[425968159,1782059432000,-166.66,0.00010959,2]
[425968153,1782059432000,-2892.94,0.00010936,2]
[425968157,1782059432000,-200.0,0.00010959,2]
[425968172,1782059432000,-166.66,0.00011,2]
[425968155,1782059432000,-2892.94,0.00010956,2]
[425968163,1782059432000,-2284.5519898,0.00010977,2]
[425968167,1782059432000,-608.3880102,0.00010977,2]
[425968170,1782059432000,-2892.94,0.00010999,2]
[425968161,1782059432000,-150.0,0.00010959,2]
[425968174,1782059432000,-634.29359277,0.00011022,2]
[425968196,1782059437000,-605.2535408,0.00011022,2]
[425968197,1782059437000,-1653.39286643,0.00011022,2]
[425968200,1782059437000,-2852.38683355,0.00011071,2]
[425968198,1782059437000,-2892.94,0.00011046,2]
[425968199,1782059437000,-166.66,0.00011068,2]
[425968232,1782059440000,-2892.94,0.00011411,2]
[425968228,1782059440000,-2892.94,0.00011341,2]
[425968230,1782059440000,-2892.94,0.00011375,2]
[425968229,1782059440000,-166.66,0.00011351,2]
[425968231,1782059440000,-166.66,0.00011397,2]
[425968234,1782059440000,-500.0,0.00011448,2]
[425968233,1782059440000,-2892.94,0.00011448,2]
[425968243,1782059440000,-500.0,0.00011448,2]
[425968237,1782059440000,-500.0,0.00011448,2]
[425968238,1782059440000,-500.0,0.00011448,2]
[425968241,1782059440000,-500.0,0.00011448,2]
[425968240,1782059440000,-500.0,0.00011448,2]
[425968244,1782059440000,-500.0,0.00011448,2]
[425968227,1782059440000,-166.61,0.00011325,2]
[425968235,1782059440000,-500.0,0.00011448,2]
[425968225,1782059440000,-2892.94,0.00011307,2]
[425968212,1782059440000,-950.85241746,0.00011124,2]
[425968224,1782059440000,-166.66,0.00011288,2]
[425968242,1782059440000,-500.0,0.00011448,2]
[425968211,1782059440000,-2892.94,0.00011097,2]
[425968210,1782059440000,-40.55316645,0.00011071,2]
[425968213,1782059440000,-409.53920597,0.00011124,2]
[425968214,1782059440000,-343.94,0.00011124,2]
[425968216,1782059440000,-2892.94,0.00011152,2]
[425968226,1782059440000,-500.0,0.00011325,2]
[425968215,1782059440000,-1188.60837657,0.00011124,2]
[425968217,1782059440000,-166.66,0.00011178,2]
[425968221,1782059440000,-14446.68008739,0.00011225,2]
[425968218,1782059440000,-2892.94,0.00011181,2]
[425968220,1782059440000,-2892.94,0.00011211,2]
[425968222,1782059440000,-2892.94,0.00011242,2]
[425968223,1782059440000,-2892.94,0.00011274,2]
[425968219,1782059440000,-311.12,0.00011182,2]
[425968245,1782059440000,-500.0,0.00011448,2]
[425968257,1782059440000,-500.0,0.00011448,2]
[425968249,1782059440000,-500.0,0.00011448,2]
[425968273,1782059440000,-500.0,0.00011448,2]
[425968269,1782059440000,-500.0,0.00011448,2]
[425968271,1782059440000,-500.0,0.00011448,2]
[425968272,1782059440000,-500.0,0.00011448,2]
[425968274,1782059440000,-500.0,0.00011448,2]
[425968279,1782059440000,-500.0,0.00011448,2]
[425968267,1782059440000,-500.0,0.00011448,2]
[425968280,1782059440000,-500.0,0.00011448,2]
[425968281,1782059440000,-500.0,0.00011448,2]
[425968284,1782059440000,-500.0,0.00011448,2]
[425968282,1782059440000,-500.0,0.00011448,2]
[425968283,1782059440000,-500.0,0.00011448,2]
[425968286,1782059440000,-500.0,0.00011448,2]
[425968248,1782059440000,-500.0,0.00011448,2]
[425968278,1782059440000,-500.0,0.00011448,2]
[425968266,1782059440000,-500.0,0.00011448,2]
[425968285,1782059440000,-500.0,0.00011448,2]
[425968264,1782059440000,-500.0,0.00011448,2]
[425968247,1782059440000,-500.0,0.00011448,2]
[425968265,1782059440000,-500.0,0.00011448,2]
[425968251,1782059440000,-500.0,0.00011448,2]
[425968252,1782059440000,-500.0,0.00011448,2]
[425968250,1782059440000,-500.0,0.00011448,2]
[425968255,1782059440000,-500.0,0.00011448,2]
[425968254,1782059440000,-500.0,0.00011448,2]
[425968253,1782059440000,-500.0,0.00011448,2]
[425968258,1782059440000,-500.0,0.00011448,2]
[425968287,1782059440000,-500.0,0.00011448,2]
[425968259,1782059440000,-500.0,0.00011448,2]
[425968263,1782059440000,-500.0,0.00011448,2]
[425968262,1782059440000,-500.0,0.00011448,2]
[425968261,1782059440000,-500.0,0.00011448,2]
[425968256,1782059440000,-500.0,0.00011448,2]
[425968327,1782059441000,-441.218911,0.00011448,2]
[425968323,1782059441000,-500.0,0.00011448,2]
[425968325,1782059441000,-500.0,0.00011448,2]
[425968322,1782059441000,-500.0,0.00011448,2]
[425968326,1782059441000,-500.0,0.00011448,2]
[425968320,1782059441000,-500.0,0.00011448,2]
[425968321,1782059441000,-500.0,0.00011448,2]
[425968318,1782059441000,-500.0,0.00011448,2]
[425968330,1782059441000,-2892.94,0.00011486,2]
[425968317,1782059441000,-500.0,0.00011448,2]
[425968324,1782059441000,-500.0,0.00011448,2]
[425968329,1782059441000,-500.0,0.00011479,2]
[425968336,1782059441000,-2892.94,0.00011605,2]
[425968328,1782059441000,-165.459691,0.00011448,2]
[425968334,1782059441000,-2892.94,0.00011564,2]
[425968332,1782059441000,-2892.94,0.00011525,2]
[425968333,1782059441000,-2000.0,0.0001155,2]
[425968335,1782059441000,-500.0,0.00011599,2]
[425968338,1782059441000,-2892.94,0.00011647,2]
[425968339,1782059441000,-2892.94,0.00011689,2]
[425968341,1782059441000,-166.66,0.00011703,2]
[425968342,1782059441000,-2892.94,0.00011733,2]
[425968340,1782059441000,-200.0,0.000117,4]
[425968343,1782059441000,-900.9778,0.00011778,2]
[425968319,1782059441000,-500.0,0.00011448,2]
[425968331,1782059441000,-166.66,0.00011507,2]
[425968316,1782059441000,-500.0,0.00011448,2]
[425968300,1782059441000,-500.0,0.00011448,2]
[425968312,1782059441000,-500.0,0.00011448,2]
[425968289,1782059441000,-500.0,0.00011448,2]
[425968288,1782059441000,-500.0,0.00011448,2]
[425968292,1782059441000,-500.0,0.00011448,2]
[425968293,1782059441000,-500.0,0.00011448,2]
[425968290,1782059441000,-500.0,0.00011448,2]
[425968291,1782059441000,-500.0,0.00011448,2]
[425968296,1782059441000,-500.0,0.00011448,2]
[425968294,1782059441000,-500.0,0.00011448,2]
[425968298,1782059441000,-500.0,0.00011448,2]
[425968295,1782059441000,-500.0,0.00011448,2]
[425968297,1782059441000,-500.0,0.00011448,2]
[425968303,1782059441000,-500.0,0.00011448,2]
[425968313,1782059441000,-500.0,0.00011448,2]
[425968346,1782059441000,-400.0,0.000118,4]
[425968301,1782059441000,-500.0,0.00011448,2]
[425968304,1782059441000,-500.0,0.00011448,2]
[425968302,1782059441000,-500.0,0.00011448,2]
[425968305,1782059441000,-500.0,0.00011448,2]
[425968308,1782059441000,-500.0,0.00011448,2]
[425968307,1782059441000,-500.0,0.00011448,2]
[425968306,1782059441000,-500.0,0.00011448,2]
[425968309,1782059441000,-500.0,0.00011448,2]
[425968310,1782059441000,-500.0,0.00011448,2]
[425968311,1782059441000,-500.0,0.00011448,2]
[425968314,1782059441000,-500.0,0.00011448,2]
[425968315,1782059441000,-500.0,0.00011448,2]
[425968299,1782059441000,-500.0,0.00011448,2]
[425968345,1782059441000,-255.0,0.00011796,2]
[425968337,1782059441000,-469.87,0.00011634,2]
[425968347,1782059441000,-250.0,0.00011813,2]
[425968379,1782059441000,-268.47019626,0.00012329,2]
[425968382,1782059441000,-154.26333622,0.00012342,2]
[425968380,1782059441000,-268.47019626,0.00012329,2]
[425968385,1782059441000,-154.96600771,0.00012535,2]
[425968383,1782059441000,-151.0,0.00012378,2]
[425968386,1782059441000,-2272.0,0.00012631,5]
[425968384,1782059441000,-166.66,0.00012406,2]
[425968381,1782059441000,-268.47019626,0.00012329,2]
[425968387,1782059441000,-2210.0,0.00012631,5]
[425968390,1782059441000,-180.07627,0.0001281,2]
[425968388,1782059441000,-180.07627,0.0001271,2]
[425968389,1782059441000,-180.07628,0.0001276,2]
[425968375,1782059441000,-2005.0,0.00012327,5]
[425968391,1782059441000,-2000.0,0.00012834,2]
[425968395,1782059441000,-469.87,0.00012927,2]
[425968394,1782059441000,-433.0,0.00012926,2]
[425968399,1782059441000,-173.24479151,0.00013002,2]
[425968397,1782059441000,-260.14002293,0.00012967,2]
[425968396,1782059441000,-180.07627,0.0001296,2]
[425968398,1782059441000,-14446.6800873,0.00012989,2]
[425968393,1782059441000,-180.07628,0.0001291,2]
[425968400,1782059441000,-150.0,0.00013065,7]
[425968403,1782059441000,-350.0,0.00013176,2]
[425968344,1782059441000,-2892.94,0.00011778,2]
[425968402,1782059441000,-171.25,0.00013173,2]
[425968404,1782059441000,-151.0,0.00013182,2]
[425968392,1782059441000,-180.07628,0.0001286,2]
[425968376,1782059441000,-167.45,0.00012329,2]
[425968401,1782059441000,-160.0,0.00013165,2]
[425968378,1782059441000,-268.47019626,0.00012329,2]
[425968374,1782059441000,-233.89,0.00012305,2]
[425968349,1782059441000,-500.0,0.00011814,2]
[425968350,1782059441000,-302.06055743,0.00011814,2]
[425968352,1782059441000,-250.0,0.00011832,2]
[425968351,1782059441000,-2892.94,0.00011823,2]
[425968354,1782059441000,-442.85529746,0.00011873,2]
[425968353,1782059441000,-2892.94,0.0001187,2]
[425968356,1782059441000,-151.0,0.00012,2]
[425968357,1782059441000,-151.0,0.00012,2]
[425968361,1782059441000,-18425.37276823,0.00012088,2]
[425968355,1782059441000,-600.0,0.000119,4]
[425968359,1782059441000,-215.449231,0.00012025,2]
[425968360,1782059441000,-166.66,0.00012054,2]
[425968348,1782059441000,-250.0,0.00011814,2]
[425968362,1782059441000,-573.15363221,0.00012105,2]
[425968358,1782059441000,-212.539835,0.00012025,2]
[425968372,1782059441000,-151.0,0.00012305,2]
[425968371,1782059441000,-500.0,0.00012293,2]
[425968368,1782059441000,-319103.3604288,0.0001227,2]
[425968366,1782059441000,-2000.0,0.00012205,2]
[425968373,1782059441000,-151.0,0.00012305,2]
[425968369,1782059441000,-110682.5770906,0.0001227,2]
[425968365,1782059441000,-166.61,0.00012188,2]
[425968370,1782059441000,-155.559837,0.0001227,2]
[425968377,1782059441000,-548.8724013,0.00012329,2]
[425968364,1782059441000,-151.0,0.00012183,2]
[425968367,1782059441000,-33314.5604,0.00012205,2]
[425968363,1782059441000,-500.0,0.00012182,2]
[425968434,1782059442000,-500.0,0.00013698,2]
[425968443,1782059442000,-500.0,0.00013698,2]
[425968435,1782059442000,-500.0,0.00013698,2]
[425968433,1782059442000,-500.0,0.00013698,2]
[425968440,1782059442000,-500.0,0.00013698,2]
[425968442,1782059442000,-500.0,0.00013698,2]
[425968437,1782059442000,-500.0,0.00013698,2]
[425968438,1782059442000,-500.0,0.00013698,2]
[425968439,1782059442000,-500.0,0.00013698,2]
[425968441,1782059442000,-500.0,0.00013698,2]
[425968436,1782059442000,-500.0,0.00013698,2]
[425968448,1782059442000,-500.0,0.00013698,2]
[425968446,1782059442000,-500.0,0.00013698,2]
[425968444,1782059442000,-500.0,0.00013698,2]
[425968447,1782059442000,-500.0,0.00013698,2]
[425968450,1782059442000,-500.0,0.00013698,2]
[425968449,1782059442000,-500.0,0.00013698,2]
[425968451,1782059442000,-500.0,0.00013698,2]
[425968453,1782059442000,-500.0,0.00013698,2]
[425968452,1782059442000,-608.02329171,0.00013698,2]
[425968454,1782059442000,-500.0,0.00013698,2]
[425968455,1782059442000,-500.0,0.00013698,2]
[425968432,1782059442000,-500.0,0.00013698,2]
[425968445,1782059442000,-500.0,0.00013698,2]
[425968429,1782059442000,-357.8107871,0.00013698,2]
[425968419,1782059442000,-500.0,0.00013698,2]
[425968426,1782059442000,-500.0,0.00013698,2]
[425968456,1782059442000,-500.0,0.00013698,2]
[425968405,1782059442000,-256.70248179,0.00013182,2]
[425968406,1782059442000,-350.0,0.00013229,2]
[425968408,1782059442000,-350.0,0.00013554,2]
[425968407,1782059442000,-700.0,0.00013399,2]
[425968409,1782059442000,-585.66,0.00013698,2]
[425968410,1782059442000,-585.66,0.00013698,2]
[425968411,1782059442000,-585.66,0.00013698,2]
[425968413,1782059442000,-500.0,0.00013698,2]
[425968412,1782059442000,-500.0,0.00013698,2]
[425968414,1782059442000,-500.0,0.00013698,2]
[425968431,1782059442000,-500.0,0.00013698,2]
[425968416,1782059442000,-483.3661047,0.00013698,2]
[425968417,1782059442000,-500.0,0.00013698,2]
[425968418,1782059442000,-500.0,0.00013698,2]
[425968420,1782059442000,-500.0,0.00013698,2]
[425968421,1782059442000,-500.0,0.00013698,2]
[425968423,1782059442000,-609.2,0.00013698,2]
[425968422,1782059442000,-500.0,0.00013698,2]
[425968424,1782059442000,-426.56938148,0.00013698,2]
[425968425,1782059442000,-500.0,0.00013698,2]
[425968427,1782059442000,-502.37309747,0.00013698,2]
[425968428,1782059442000,-516.50658235,0.00013698,2]
[425968430,1782059442000,-500.0,0.00013698,2]
[425968415,1782059442000,-500.0,0.00013698,2]
[425968457,1782059442000,-500.0,0.00013698,2]
[425968472,1782059442000,-151.0,0.00013699,2]
[425968460,1782059442000,-500.0,0.00013698,2]
[425968489,1782059442000,-663.29,0.00014531,2]
[425968487,1782059442000,-736.0,0.00014174,2]
[425968490,1782059442000,-912.69798969,0.0001457,2]
[425968492,1782059442000,-555.47,0.00014829,2]
[425968491,1782059442000,-14446.6800873,0.00014754,2]
[425968495,1782059442000,-151.0,0.00014986,2]
[425968493,1782059442000,-573.15363215,0.00014904,2]
[425968496,1782059442000,-171.25,0.00015055,2]
[425968494,1782059442000,-1500.0,0.00014938,2]
[425968497,1782059442000,-151.0,0.00015068,2]
[425968499,1782059442000,-151.0,0.00015068,2]
[425968488,1782059442000,-469.87,0.00014219,2]
[425968500,1782059442000,-151.0,0.00015068,2]
[425968498,1782059442000,-151.0,0.00015068,2]
[425968503,1782059442000,-151.0,0.00015068,2]
[425968502,1782059442000,-151.0,0.00015068,2]
[425968506,1782059442000,-151.0,0.00015068,2]
[425968505,1782059442000,-151.0,0.00015068,2]
[425968508,1782059442000,-151.0,0.00015068,2]
[425968504,1782059442000,-151.0,0.00015068,2]
[425968507,1782059442000,-151.0,0.00015068,2]
[425968510,1782059442000,-151.0,0.00015068,2]
[425968511,1782059442000,-222.12432,0.00015068,2]
[425968458,1782059442000,-500.0,0.00013698,2]
[425968501,1782059442000,-151.0,0.00015068,2]
[425968483,1782059442000,-350.0,0.00013992,2]
[425968509,1782059442000,-151.0,0.00015068,2]
[425968485,1782059442000,-171.25,0.00014114,2]
[425968486,1782059442000,-2000.0,0.00014117,2]
[425968463,1782059442000,-500.0,0.00013698,2]
[425968461,1782059442000,-500.0,0.00013698,2]
[425968462,1782059442000,-500.0,0.00013698,2]
[425968464,1782059442000,-500.0,0.00013698,2]
[425968466,1782059442000,-500.0,0.00013698,2]
[425968465,1782059442000,-500.0,0.00013698,2]
[425968467,1782059442000,-500.0,0.00013698,2]
[425968469,1782059442000,-200.0,0.00013699,2]
[425968468,1782059442000,-152.28869,0.00013699,2]
[425968474,1782059442000,-151.0,0.00013699,2]
[425968470,1782059442000,-151.0,0.00013699,2]
[425968459,1782059442000,-500.0,0.00013698,2]
[425968475,1782059442000,-151.0,0.00013699,2]
[425968473,1782059442000,-151.0,0.00013699,2]
[425968471,1782059442000,-151.0,0.00013699,2]
[425968477,1782059442000,-288.50393753,0.00013699,2]
[425968476,1782059442000,-227.265461,0.00013699,2]
[425968478,1782059442000,-478.04785953,0.00013699,2]
[425968479,1782059442000,-151.0,0.00013756,2]
[425968481,1782059442000,-270.55,0.00013769,2]
[425968480,1782059442000,-18425.37276819,0.00013756,2]
[425968484,1782059442000,-250.0,0.00014,2]
[425968482,1782059442000,-350.0,0.00013951,2]
[425968512,1782059442000,-169.97,0.00015295,2]
[425968547,1782059443000,-500.0,0.00016438,2]
[425968549,1782059443000,-500.0,0.00016438,2]
[425968548,1782059443000,-500.0,0.00016438,2]
[425968546,1782059443000,-500.0,0.00016438,2]
[425968540,1782059443000,-500.0,0.00016438,2]
[425968544,1782059443000,-500.0,0.00016438,2]
[425968545,1782059443000,-500.0,0.00016438,2]
[425968543,1782059443000,-500.0,0.00016438,2]
[425968538,1782059443000,-500.0,0.00016438,2]
[425968542,1782059443000,-500.0,0.00016438,2]
[425968552,1782059443000,-500.0,0.00016438,2]